fUST/lending_fUST_20250126
["ID","MTS","AMOUNT","RATE_DAILY","PERIOD"]
[350387316,1737821447656,-500.0,0.00016575,2]
[350387318,1737821447666,-500.0,0.00016575,2]
[350387320,1737821447679,-500.0,0.00016575,2]
[350387322,1737821447689,-200.97,0.00016575,2]
[350387324,1737821447699,-500.0,0.00016575,2]
[350387326,1737821447708,-827.49,0.00016575,2]
[350387328,1737821447718,-500.0,0.00016575,2]
[350387330,1737821447727,-792.59,0.00016575,2]
[350387332,1737821447737,-500.0,0.00016575,2]
[350387335,1737821447747,-1878.34,0.00016575,2]
[350387336,1737821447757,-7081.78,0.00016575,2]
[350387338,1737821447766,-10523.72,0.00016575,2]
[350387340,1737821447776,-500.0,0.00016575,2]
[350387342,1737821447785,-500.0,0.00016575,2]
[350387345,1737821447795,-500.0,0.00016575,2]
[350387347,1737821447805,-500.0,0.00016575,2]
[350387349,1737821447814,-987.8,0.00016575,2]
[350387350,1737821447823,-500.0,0.00016575,2]
[350387352,1737821447833,-452.6,0.00016575,2]
[350387355,1737821447842,-722.07,0.00016575,2]
[350387357,1737821447852,-500.0,0.00016575,2]
[350387359,1737821447861,-12337.1267465,0.00016578,2]
[350387361,1737821447872,-157.605,0.0001663,2]
[350387363,1737821447882,-310.3641415,0.000167,2]
[350387365,1737821447892,-436.4247072,0.000167,2]
[350387367,1737821447901,-500.0,0.00016712,2]
[350387369,1737821447911,-500.0,0.00016712,2]
[350387371,1737821447921,-500.0,0.00016712,2]
[350387372,1737821447931,-500.0,0.00016712,2]
[350387373,1737821447941,-500.0,0.00016712,2]
[350387374,1737821447951,-592.89,0.00016712,2]
[350387376,1737821447961,-500.0,0.00016712,2]
[350387377,1737821447971,-484.36487165,0.00016712,2]
[350387379,1737821447980,-512.04,0.00016712,2]
[350387381,1737821447991,-500.0,0.00016712,2]
[350387382,1737821448000,-500.0,0.00016712,2]
[350387383,1737821448009,-500.0,0.00016712,2]
[350387384,1737821448019,-1043.66,0.00016712,2]
[350387385,1737821448029,-500.0,0.00016712,2]
[350387386,1737821448038,-500.0,0.00016712,2]
[350387387,1737821448047,-256.76,0.00016712,2]
[350387388,1737821448057,-500.0,0.00016712,2]
[350387389,1737821448068,-504.13,0.00016712,2]
[350387390,1737821448078,-500.0,0.00016712,2]
[350387391,1737821448088,-500.0,0.00016712,2]
[350387392,1737821448099,-500.0,0.00016712,2]
[350387393,1737821448109,-500.0,0.00016712,2]
[350387394,1737821448119,-500.0,0.00016712,2]
[350387395,1737821448129,-500.0,0.00016712,2]
[350387396,1737821448139,-523.23,0.00016712,2]
[350387397,1737821448149,-500.0,0.00016712,2]
[350387398,1737821448159,-1145.95,0.00016712,2]
[350387399,1737821448169,-500.0,0.00016712,2]
[350387400,1737821448179,-500.0,0.00016712,2]
[350387401,1737821448189,-500.0,0.00016712,2]
[350387402,1737821448199,-230.94,0.00016712,2]
[350387403,1737821448210,-500.0,0.00016712,2]
[350387404,1737821448220,-500.0,0.00016712,2]
[350387405,1737821448230,-624.82,0.00016712,2]
[350387406,1737821448239,-438.44249704,0.00016712,2]
[350387407,1737821448249,-557.0,0.00016712,2]
[350387408,1737821448260,-500.0,0.00016712,2]
[350387409,1737821448269,-500.0,0.00016712,2]
[350387410,1737821448279,-500.0,0.00016712,2]
[350387411,1737821448289,-500.0,0.00016712,2]
[350387412,1737821448299,-500.0,0.00016712,2]
[350387413,1737821448309,-500.0,0.00016712,2]
[350387414,1737821448319,-1176.7,0.00016712,2]
[350387415,1737821448328,-507.4,0.00016712,2]
[350387416,1737821448339,-500.0,0.00016712,2]
[350387417,1737821448348,-500.0,0.00016712,2]
[350387418,1737821448358,-632.66,0.00016712,2]
[350387419,1737821448368,-500.0,0.00016712,2]
[350387420,1737821448378,-390.28550344,0.00016712,2]
[350387421,1737821448388,-500.0,0.00016712,2]
[350387422,1737821448398,-500.0,0.00016712,2]
[350387423,1737821448408,-1450.51,0.00016712,2]
[350387424,1737821448419,-500.0,0.00016712,2]
[350387425,1737821448429,-368.70273934,0.00016712,2]
[350387426,1737821448438,-2903.73,0.00016712,2]
[350387427,1737821448448,-500.0,0.00016712,2]
[350387428,1737821448458,-500.0,0.00016712,2]
[350387429,1737821448468,-500.0,0.00016712,2]
[350387430,1737821448478,-500.0,0.00016712,2]
[350387431,1737821448488,-1223.23,0.00016712,2]
[350387432,1737821448498,-236.49333379,0.00016712,2]
[350387433,1737821448508,-500.0,0.00016712,2]
[350387434,1737821448518,-710.51,0.00016712,2]
[350387435,1737821448528,-500.0,0.00016712,2]
[350387436,1737821448538,-523.01,0.00016712,2]
[350387437,1737821448548,-500.0,0.00016712,2]
[350387438,1737821448558,-6579.93,0.00016712,2]
[350387439,1737821448569,-1391.0,0.00016712,2]
[350387440,1737821448578,-1643.6,0.00016712,2]
[350387441,1737821448588,-500.0,0.00016712,2]
[350387442,1737821448599,-691.57,0.00016712,2]
[350387443,1737821448611,-522.43,0.00016712,2]
[350387444,1737821448621,-1375.26,0.00016712,2]
[350387445,1737821448631,-569.11,0.00016712,2]
[350387446,1737821448643,-500.0,0.00016712,2]
[350387447,1737821448653,-2316.83,0.00016712,2]
[350387448,1737821448662,-18342.242281,0.00016712,2]
[350387449,1737821448911,-1238.00567675,0.00016712,2]
[350387450,1737821449221,-500.0,0.00016438,2]
[350387451,1737821449231,-1408.58035105,0.00016712,2]
[350387452,1737821449244,-1989.8816912,0.00016712,2]
[350387453,1737821449254,-1338.38,0.00016712,2]
[350387454,1737821449264,-621.61,0.00016712,2]
[350387455,1737821449274,-500.0,0.00016712,2]
[350387456,1737821449285,-685.94,0.00016712,2]
[350387457,1737821449296,-1504.23,0.00016712,2]
[350387458,1737821449305,-1190.45,0.00016712,2]
[350387459,1737821449315,-874.06,0.00016712,2]
[350387460,1737821449326,-500.0,0.00016712,2]
[350387461,1737821449336,-584.63,0.00016712,2]
[350387462,1737821449346,-720.74,0.00016712,2]
[350387463,1737821449356,-500.0,0.00016712,2]
[350387464,1737821449367,-547.43,0.00016712,2]
[350387465,1737821449377,-500.0,0.00016712,2]
[350387466,1737821449387,-500.0,0.00016712,2]
[350387467,1737821449398,-500.0,0.00016712,2]
[350387468,1737821449409,-500.0,0.00016712,2]
[350387469,1737821449419,-500.0,0.00016712,2]
[350387470,1737821449430,-500.0,0.00016712,2]
[350387471,1737821449441,-500.0,0.00016712,2]
[350387472,1737821449451,-500.0,0.00016712,2]
[350387473,1737821449462,-827.49,0.00016712,2]
[350387474,1737821449472,-792.59,0.00016712,2]
[350387475,1737821449483,-500.0,0.00016712,2]
[350387476,1737821449493,-1878.34,0.00016712,2]
[350387477,1737821449503,-7081.78,0.00016712,2]
[350387478,1737821449512,-10523.72,0.00016712,2]
[350387479,1737821449522,-500.0,0.00016712,2]
[350387480,1737821449532,-500.0,0.00016712,2]
[350387481,1737821449541,-500.0,0.00016712,2]
[350387482,1737821449552,-987.8,0.00016712,2]
[350387483,1737821449562,-500.0,0.00016712,2]
[350387484,1737821449571,-722.07,0.00016712,2]
[350387485,1737821449581,-3000.0,0.00016749,2]
[350387486,1737821449590,-500.0,0.00016849,2]
[350387487,1737821449602,-500.0,0.00016849,2]
[350387488,1737821449611,-500.0,0.00016849,2]
[350387489,1737821449620,-500.0,0.00016849,2]
[350387490,1737821449630,-592.89,0.00016849,2]
[350387491,1737821449639,-500.0,0.00016849,2]
[350387492,1737821449648,-512.04,0.00016849,2]
[350387493,1737821449658,-500.0,0.00016849,2]
[350387494,1737821449667,-500.0,0.00016849,2]
[350387495,1737821449678,-500.0,0.00016849,2]
[350387496,1737821449688,-500.0,0.00016849,2]
[350387497,1737821449697,-500.0,0.00016849,2]
[350387498,1737821449707,-316.00137331,0.00016849,2]
[350387499,1737821449716,-504.13,0.00016849,2]
[350387500,1737821449725,-500.0,0.00016849,2]
[350387501,1737821449735,-500.0,0.00016849,2]
[350387502,1737821449746,-500.0,0.00016849,2]
[350387503,1737821449755,-500.0,0.00016849,2]
[350387504,1737821449765,-500.0,0.00016849,2]
[350387505,1737821449775,-500.0,0.00016849,2]
[350387506,1737821449784,-523.23,0.00016849,2]
[350387507,1737821449794,-500.0,0.00016849,2]
[350387508,1737821449803,-1145.95,0.00016849,2]
[350387509,1737821449812,-500.0,0.00016849,2]
[350387510,1737821449822,-500.0,0.00016849,2]
[350387511,1737821449831,-500.0,0.00016849,2]
[350387512,1737821449841,-500.0,0.00016849,2]
[350387513,1737821449850,-500.0,0.00016849,2]
[350387514,1737821449859,-624.82,0.00016849,2]
[350387515,1737821449869,-557.0,0.00016849,2]
[350387516,1737821449878,-500.0,0.00016849,2]
[350387517,1737821449888,-500.0,0.00016849,2]
[350387518,1737821449897,-500.0,0.00016849,2]
[350387519,1737821449907,-500.0,0.00016849,2]
[350387520,1737821449917,-500.0,0.00016849,2]
[350387521,1737821449926,-500.0,0.00016849,2]
[350387522,1737821449935,-1176.7,0.00016849,2]
[350387523,1737821449945,-507.4,0.00016849,2]
[350387524,1737821449954,-500.0,0.00016849,2]
[350387525,1737821449991,-500.0,0.00016849,2]
[350387526,1737821450000,-632.66,0.00016849,2]
[350387527,1737821450009,-296.67594904,0.00016849,2]
[350387528,1737821450018,-500.0,0.00016849,2]
[350387529,1737821450028,-500.0,0.00016849,2]
[350387530,1737821450037,-1450.51,0.00016849,2]
[350387531,1737821450048,-433.9579993,0.00016849,2]
[350387532,1737821450057,-2903.73,0.00016849,2]
[350387533,1737821450067,-500.0,0.00016849,2]
[350387534,1737821450076,-500.0,0.00016849,2]
[350387535,1737821450085,-500.0,0.00016849,2]
[350387536,1737821450095,-1223.23,0.00016849,2]
[350387537,1737821450105,-500.0,0.00016849,2]
[350387538,1737821450115,-710.51,0.00016849,2]
[350387539,1737821450125,-500.0,0.00016849,2]
[350387540,1737821450134,-523.01,0.00016849,2]
[350387541,1737821450144,-222.6,0.00016849,2]
[350387542,1737821450154,-6579.93,0.00016849,2]
[350387543,1737821450164,-1391.0,0.00016849,2]
[350387544,1737821450173,-1643.6,0.00016849,2]
[350387545,1737821450183,-500.0,0.00016849,2]
[350387546,1737821450193,-691.57,0.00016849,2]
[350387547,1737821450202,-522.43,0.00016849,2]
[350387548,1737821450212,-1375.26,0.00016849,2]
[350387549,1737821450221,-569.11,0.00016849,2]
[350387550,1737821450230,-500.0,0.00016849,2]
[350387551,1737821450240,-2316.83,0.00016849,2]
[350387552,1737821450250,-22978.71,0.00016849,2]
[350387553,1737821450260,-1338.38,0.00016849,2]
[350387554,1737821450270,-621.61,0.00016849,2]
[350387555,1737821450280,-500.0,0.00016849,2]
[350387556,1737821450290,-685.94,0.00016849,2]
[350387557,1737821450300,-1504.23,0.00016849,2]
[350387558,1737821450310,-1190.45,0.00016849,2]
[350387559,1737821450320,-874.06,0.00016849,2]
[350387560,1737821450330,-500.0,0.00016849,2]
[350387561,1737821450339,-584.63,0.00016849,2]
[350387562,1737821450349,-720.74,0.00016849,2]
[350387563,1737821450358,-500.0,0.00016849,2]
[350387564,1737821450367,-547.43,0.00016849,2]
[350387565,1737821450377,-500.0,0.00016849,2]
[350387566,1737821450386,-500.0,0.00016849,2]
[350387567,1737821450396,-500.0,0.00016849,2]
[350387568,1737821450407,-500.0,0.00016849,2]
[350387569,1737821450416,-500.0,0.00016849,2]
[350387570,1737821450426,-500.0,0.00016849,2]
[350387571,1737821450435,-500.0,0.00016849,2]
[350387572,1737821450444,-500.0,0.00016849,2]
[350387573,1737821450454,-827.49,0.00016849,2]
[350387574,1737821450463,-792.59,0.00016849,2]
[350387575,1737821450473,-500.0,0.00016849,2]
[350387576,1737821450483,-1878.34,0.00016849,2]
[350387577,1737821450494,-7081.78,0.00016849,2]
[350387578,1737821450503,-10523.72,0.00016849,2]
[350387579,1737821450512,-500.0,0.00016849,2]
[350387580,1737821450522,-500.0,0.00016849,2]
[350387581,1737821450532,-500.0,0.00016849,2]
[350387582,1737821450542,-987.8,0.00016849,2]
[350387583,1737821450551,-500.0,0.00016849,2]
[350387584,1737821450560,-722.07,0.00016849,2]
[350387585,1737821450569,-500.0,0.00016986,2]
[350387586,1737821450578,-500.0,0.00016986,2]
[350387587,1737821450588,-500.0,0.00016986,2]
[350387588,1737821450598,-500.0,0.00016986,2]
[350387589,1737821450610,-592.89,0.00016986,2]
[350387590,1737821450619,-500.0,0.00016986,2]
[350387591,1737821450629,-512.04,0.00016986,2]
[350387592,1737821450638,-158.14890159,0.00016986,2]
[350387593,1737821450650,-500.0,0.00016986,2]
[350387594,1737821450659,-500.0,0.00016986,2]
[350387595,1737821450668,-500.0,0.00016986,2]
[350387596,1737821450679,-500.0,0.00016986,2]
[350387597,1737821450688,-504.13,0.00016986,2]
[350387598,1737821450697,-500.0,0.00016986,2]
[350387599,1737821450707,-500.0,0.00016986,2]
[350387600,1737821450717,-500.0,0.00016986,2]
[350387601,1737821450726,-500.0,0.00016986,2]
[350387602,1737821450736,-500.0,0.00016986,2]
[350387603,1737821450746,-500.0,0.00016986,2]
[350387604,1737821450755,-523.23,0.00016986,2]
[350387605,1737821450764,-500.36035704,0.00016986,2]
[350387606,1737821450774,-1145.95,0.00016986,2]
[350387607,1737821450783,-500.0,0.00016986,2]
[350387608,1737821450792,-500.0,0.00016986,2]
[350387609,1737821450801,-500.0,0.00016986,2]
[350387610,1737821450810,-500.0,0.00016986,2]
[350387611,1737821450819,-333.05188571,0.00016986,2]
[350387612,1737821450828,-624.82,0.00016986,2]
[350387613,1737821450837,-557.0,0.00016986,2]
[350387614,1737821450846,-500.0,0.00016986,2]
[350387615,1737821450856,-500.0,0.00016986,2]
[350387616,1737821450865,-500.0,0.00016986,2]
[350387617,1737821450874,-500.0,0.00016986,2]
[350387618,1737821450883,-500.0,0.00016986,2]
[350387619,1737821450892,-500.0,0.00016986,2]
[350387620,1737821450901,-1176.7,0.00016986,2]
[350387621,1737821450910,-507.4,0.00016986,2]
[350387622,1737821450920,-500.0,0.00016986,2]
[350387623,1737821450929,-500.0,0.00016986,2]
[350387624,1737821450938,-632.66,0.00016986,2]
[350387625,1737821450947,-500.0,0.00016986,2]
[350387626,1737821450956,-500.0,0.00016986,2]
[350387627,1737821450965,-1450.51,0.00016986,2]
[350387628,1737821450974,-2903.73,0.00016986,2]
[350387629,1737821450984,-500.0,0.00016986,2]
[350387630,1737821450994,-500.0,0.00016986,2]
[350387631,1737821451002,-500.0,0.00016986,2]
[350387632,1737821451012,-1223.23,0.00016986,2]
[350387633,1737821451021,-500.0,0.00016986,2]
[350387634,1737821451030,-710.51,0.00016986,2]
[350387635,1737821451040,-500.0,0.00016986,2]
[350387636,1737821451050,-523.01,0.00016986,2]
[350387637,1737821451060,-6579.93,0.00016986,2]
[350387638,1737821451070,-1391.0,0.00016986,2]
[350387639,1737821451080,-1643.6,0.00016986,2]
[350387640,1737821451090,-500.0,0.00016986,2]
[350387641,1737821451100,-653.42525396,0.00016986,2]
[350387642,1737821465905,871.5,0.00024,120]
[350387648,1737821955939,95712.19474486,0.000239,120]
[350387654,1737822437189,400.0,0.00013973,2]
[350387698,1737822638315,-300.0,0.0001579,2]
[350387699,1737822638327,-880.14394153,0.00016338,2]
[350387700,1737822638337,-300.0,0.00016436,2]
[350387701,1737822638347,-292.36575598,0.00016437,2]
[350387702,1737822638358,-383.30629666,0.00016437,2]
[350387703,1737822638368,-500.0,0.00016437,2]
[350387705,1737822638378,-500.0,0.00016437,2]
[350387707,1737822638388,-500.0,0.00016437,2]
[350387708,1737822638400,-500.0,0.00016437,2]
[350387709,1737822638410,-395.06666075,0.00016437,2]
[350387710,1737822638420,-500.0,0.00016437,2]
[350387711,1737822638431,-494.89824471,0.00016437,2]
[350387712,1737822638441,-450.25787042,0.00016438,2]
[350387713,1737822638451,-500.0,0.00016438,2]
[350387714,1737822638462,-500.0,0.00016438,2]
[350387715,1737822638472,-267.70035313,0.00016438,2]
[350387716,1737822638482,-500.0,0.00016438,2]
[350387717,1737822638492,-500.78599156,0.00016438,2]
[350387718,1737822638502,-614.39482546,0.00016438,2]
[350387719,1737822638512,-500.0,0.00016438,2]
[350387720,1737822638523,-500.0,0.00016438,2]
[350387721,1737822638533,-536.6713274,0.00016438,2]
[350387722,1737822638543,-435.92739341,0.00016438,2]
[350387723,1737822638553,-500.0,0.00016438,2]
[350387724,1737822638563,-127.63122405,0.00016438,2]
[350387725,1737822638739,-372.36877595,0.00016438,2]
[350387726,1737822638750,-500.0,0.00016438,2]
[350387727,1737822638760,-500.0,0.00016438,2]
[350387728,1737822638770,-500.0,0.00016438,2]
[350387729,1737822638779,-500.0,0.00016438,2]
[350387730,1737822638789,-907.21,0.00016438,2]
[350387731,1737822638799,-500.0,0.00016438,2]
[350387732,1737822638810,-500.0,0.00016438,2]
[350387733,1737822638820,-500.0,0.00016438,2]
[350387734,1737822638830,-500.0,0.00016438,2]
[350387735,1737822638839,-500.0,0.00016438,2]
[350387736,1737822638850,-500.0,0.00016438,2]
[350387737,1737822638859,-500.0,0.00016438,2]
[350387738,1737822638869,-500.0,0.00016438,2]
[350387739,1737822638881,-500.0,0.00016438,2]
[350387740,1737822638890,-500.0,0.00016438,2]
[350387741,1737822638900,-233.37150342,0.00016438,2]
[350387742,1737822638910,-500.0,0.00016438,2]
[350387743,1737822638920,-500.0,0.00016438,2]
[350387744,1737822638930,-500.0,0.00016438,2]
[350387745,1737822638940,-500.0,0.00016438,2]
[350387746,1737822638950,-931.56,0.00016438,2]
[350387747,1737822638960,-500.0,0.00016438,2]
[350387748,1737822638970,-500.0,0.00016438,2]
[350387749,1737822638980,-166.61742715,0.00016438,2]
[350387750,1737822638991,-500.0,0.00016438,2]
[350387751,1737822639003,-500.0,0.00016438,2]
[350387752,1737822639013,-500.0,0.00016438,2]
[350387753,1737822639024,-507.11993169,0.00016438,2]
[350387754,1737822639041,-342.06975907,0.00016438,2]
[350387764,1737822640302,-157.93024093,0.00016438,2]
[350387766,1737822640313,-151.74728197,0.00016438,2]
[350387770,1737822640359,-348.25271803,0.00016438,2]
[350387771,1737822640369,-500.85,0.00016438,2]
[350387772,1737822640380,-30.55728193,0.00016438,2]
[350387794,1737822643223,-469.44271807,0.00016438,2]
[350387795,1737822643233,-21.5543574,0.00016438,2]
[350387809,1737822646372,-478.4456426,0.00016438,2]
[350387810,1737822646382,-500.0,0.00016438,2]
[350387811,1737822646394,-500.0,0.00016438,2]
[350387812,1737822646404,-500.0,0.00016438,2]
[350387813,1737822646414,-500.0,0.00016438,2]
[350387814,1737822646424,-500.0,0.00016438,2]
[350387815,1737822646434,-852.47935755,0.00016438,2]
[350387888,1737822724182,15078.99136746,0.00022054,120]
[350387890,1737823340118,400.0,0.00013973,2]
[350387891,1737823395946,197.01006944,0.00014923,2]
[350387892,1737823411727,197.01006944,0.00014923,2]
[350387893,1737823420829,197.01006944,0.00014923,2]
[350387895,1737823757701,155.349277,0.0002156,30]
[350388547,1737823838492,-197.01006944,0.00015074,2]
[350388549,1737823838501,-197.01006944,0.00015226,2]
[350388551,1737823838510,-197.01006944,0.00016011,2]
[350388553,1737823838519,-300.0,0.00016313,2]
[350388555,1737823838529,-5053.60648866,0.00016314,2]
[350389313,1737823846475,-789.30439001,0.00016151,2]
[350389315,1737823846486,-1131.36882859,0.00016314,2]
[350390031,1737824006736,3000.0,0.00022,30]
[350390032,1737824281541,400.0,0.00013973,2]
[350390097,1737825032678,-6152.15142926,0.00016074,2]
[350390099,1737825032688,-161.345,0.0001614,2]
[350390101,1737825032698,-166.38375241,0.00016338,2]
[350390103,1737825032707,-300.0,0.00016436,2]
[350390105,1737825032716,-221.65536052,0.00016437,2]
[350390107,1737825032725,-500.0,0.00016437,2]
[350390109,1737825032734,-500.0,0.00016437,2]
[350390111,1737825032744,-500.0,0.00016437,2]
[350390113,1737825032753,-500.0,0.00016437,2]
[350390115,1737825032762,-500.0,0.00016437,2]
[350390117,1737825032771,-500.0,0.00016437,2]
[350390119,1737825032780,-500.0,0.00016437,2]
[350390122,1737825032790,-500.0,0.00016437,2]
[350390125,1737825032803,-500.0,0.00016437,2]
[350390128,1737825032813,-250.0,0.00016437,2]
[350390131,1737825032822,-494.38762125,0.00016437,2]
[350390133,1737825032832,-217.44993648,0.00016437,2]
[350390136,1737825032843,-500.0,0.00016437,2]
[350390138,1737825032852,-500.0,0.00016437,2]
[350390140,1737825032861,-500.0,0.00016437,2]
[350390142,1737825032871,-500.0,0.00016437,2]
[350390144,1737825032881,-500.0,0.00016437,2]
[350390146,1737825032890,-500.0,0.00016437,2]
[350390147,1737825032899,-500.0,0.00016437,2]
[350390149,1737825032909,-238.38082201,0.00016437,2]
[350390151,1737825032918,-500.0,0.00016437,2]
[350390153,1737825032928,-500.0,0.00016437,2]
[350390155,1737825032938,-500.0,0.00016437,2]
[350390157,1737825032947,-650.0,0.00016437,2]
[350390159,1737825032957,-500.0,0.00016437,2]
[350390161,1737825032967,-500.0,0.00016437,2]
[350390163,1737825032978,-500.0,0.00016437,2]
[350390165,1737825032987,-500.0,0.00016437,2]
[350390167,1737825032997,-500.0,0.00016437,2]
[350390169,1737825033007,-500.0,0.00016437,2]
[350390171,1737825033016,-500.0,0.00016437,2]
[350390173,1737825033026,-500.0,0.00016437,2]
[350390175,1737825033036,-235.93715566,0.00016437,2]
[350390177,1737825033047,-500.0,0.00016437,2]
[350390179,1737825033057,-500.0,0.00016438,2]
[350390181,1737825033067,-500.0,0.00016438,2]
[350390183,1737825033078,-500.0,0.00016438,2]
[350390185,1737825033088,-321.42,0.00016438,2]
[350390187,1737825033098,-500.0,0.00016438,2]
[350390188,1737825033108,-500.0,0.00016438,2]
[350390190,1737825033118,-177.54685586,0.00016438,2]
[350390192,1737825033128,-500.0,0.00016438,2]
[350390194,1737825033138,-500.0,0.00016438,2]
[350390196,1737825033148,-371.30183591,0.00016438,2]
[350390198,1737825033158,-500.0,0.00016438,2]
[350390200,1737825033168,-500.0,0.00016438,2]
[350390202,1737825033178,-500.0,0.00016438,2]
[350390204,1737825033188,-536.74645116,0.00016438,2]
[350390206,1737825033199,-500.0,0.00016438,2]
[350390208,1737825033210,-508.46,0.00016438,2]
[350390210,1737825033220,-500.0,0.00016438,2]
[350390212,1737825033230,-500.0,0.00016438,2]
[350390214,1737825033241,-500.0,0.00016438,2]
[350390231,1737825033408,-500.0,0.00016438,2]
[350390233,1737825033419,-500.0,0.00016438,2]
[350390235,1737825033430,-500.0,0.00016438,2]
[350390237,1737825033441,-502.43,0.00016438,2]
[350390239,1737825033451,-219.34642532,0.00016438,2]
[350390241,1737825033460,-500.0,0.00016438,2]
[350390243,1737825033471,-500.0,0.00016438,2]
[350390245,1737825033481,-500.0,0.00016438,2]
[350390247,1737825033491,-500.0,0.00016438,2]
[350390249,1737825033501,-500.0,0.00016438,2]
[350390251,1737825033510,-500.0,0.00016438,2]
[350390253,1737825033520,-500.0,0.00016438,2]
[350390255,1737825033530,-500.0,0.00016438,2]
[350390257,1737825033540,-500.0,0.00016438,2]
[350390259,1737825033549,-571.52,0.00016438,2]
[350390261,1737825033559,-500.0,0.00016438,2]
[350390263,1737825033568,-500.0,0.00016438,2]
[350390265,1737825033578,-500.0,0.00016438,2]
[350390267,1737825033587,-500.0,0.00016438,2]
[350390269,1737825033597,-500.0,0.00016438,2]
[350390271,1737825033607,-211.662826,0.00016438,2]
[350390273,1737825033616,-500.0,0.00016438,2]
[350390275,1737825033626,-225.52389638,0.00016438,2]
[350390277,1737825033636,-938.01,0.00016438,2]
[350390279,1737825033646,-500.0,0.00016438,2]
[350390281,1737825033655,-500.0,0.00016438,2]
[350390283,1737825033665,-500.0,0.00016438,2]
[350390285,1737825033674,-576.86,0.00016438,2]
[350390287,1737825033684,-601.25,0.00016438,2]
[350390289,1737825033695,-500.0,0.00016438,2]
[350390291,1737825033705,-500.0,0.00016438,2]
[350390293,1737825033715,-500.0,0.00016438,2]
[350390295,1737825033725,-500.0,0.00016438,2]
[350390297,1737825033736,-500.0,0.00016438,2]
[350390299,1737825033745,-500.0,0.00016438,2]
[350390301,1737825033755,-500.0,0.00016438,2]
[350390303,1737825033765,-500.0,0.00016438,2]
[350390305,1737825033775,-520.7,0.00016438,2]
[350390307,1737825033785,-949.69,0.00016438,2]
[350390309,1737825033797,-500.0,0.00016438,2]
[350390311,1737825033807,-544.43956736,0.00016438,2]
[350390313,1737825033817,-151.0,0.00016438,2]
[350390315,1737825033827,-500.0,0.00016438,2]
[350390317,1737825033837,-500.0,0.00016438,2]
[350390319,1737825033847,-500.0,0.00016438,2]
[350390321,1737825033858,-500.0,0.00016438,2]
[350390323,1737825033867,-500.0,0.00016438,2]
[350390325,1737825033877,-500.0,0.00016438,2]
[350390327,1737825033888,-506.86884258,0.00016438,2]
[350390329,1737825033899,-500.0,0.00016438,2]
[350390331,1737825033909,-500.0,0.00016438,2]
[350390333,1737825033919,-500.0,0.00016438,2]
[350390335,1737825033928,-500.0,0.00016438,2]
[350390336,1737825033938,-500.0,0.00016438,2]
[350390339,1737825033949,-500.0,0.00016438,2]
[350390341,1737825033962,-500.0,0.00016438,2]
[350390343,1737825033972,-564.79,0.00016438,2]
[350390345,1737825033983,-500.0,0.00016438,2]
[350390347,1737825033993,-151.0,0.00016438,2]
[350390349,1737825034003,-500.0,0.00016438,2]